Cogmind - Beta 15 @@@ ROGUE MODE // 2025.05.13 @ 20:03:00 Player: Epsilon 11 Result: Destroyed by HS-ZNZ(R) with Subdweller Machine Gun Performance ------------- Evolutions (0) 0 Regions Visited (2) 400 Robots Destroyed (23) 115 Value Destroyed (479) 479 Prototype IDs (0) 0 Alien Tech Used (0) 0 Bonus (0) 0 TOTAL SCORE: 994 Bonus ------- None Cogmind --------- Core Integrity 0/250 Matter 240/300 Energy 200/200 System Corruption 0% Temperature Cool (0) Movement Rolling (215) Ox9 Location -10/Subcaves Parts ------- > --- POWER (1) -------- Subdweller Power Source > --- PROPULSION (2) --- Wheel > --- UTILITY (2) ------ Huge Storage Unit Makeshift Light Armor Plating > --- WEAPON (2) ------- Subdweller Machine Gun Grenade Launcher > --- INVENTORY (25) --- Compact Wheel Subdweller Monowheel Subdweller Monowheel Disposable Heat Sink Huge Storage Unit Light Armor Plating Light Armor Plating Riot Gun Heavy Riot Gun Small Laser Subdweller Laser Peak State ------------ > --- POWER ------------ Subdweller Power Source > --- PROPULSION ------- Wheel Wheel > --- UTILITY ---------- Huge Storage Unit Makeshift Light Armor Plating > --- WEAPON ----------- Heavy Riot Gun Subdweller Beam Cannon > --- INVENTORY -------- Subdweller Power Source Subdweller Monowheel Subdweller Monowheel Disposable Heat Sink Huge Storage Unit Light Armor Plating Light Armor Plating Riot Gun Small Laser Subdweller Laser Subdweller Machine Gun Grenade Launcher [Rating: 17] Favorites ----------- Power Subdweller Power Source Engine Subdweller Power Source Propulsion Wheel Wheel Wheel Utility Huge Storage Unit Storage Huge Storage Unit Protection Makeshift Light Armor Plating Weapon Small Laser Energy Gun Small Laser Energy Cannon Subdweller Beam Cannon Ballistic Gun Subdweller Machine Gun Launcher Grenade Launcher Build | -11 -10 -10 ------- Run | Yrd Mat Sub Slots Evolved . | . . . Power . | . . . Propulsion . | . . . Utility . | . . . Weapon . | . . . Parts Attached 21 | 6 5 10 Power 4 | 1 . 3 Engine 4 | 1 . 3 Core . | . . . Reactor . | . . . Propulsion 3 | 2 . 1 Treads . | . . . Leg . | . . . Wheel 3 | 2 . 1 Hover . | . . . Flight . | . . . Utility 6 | 1 4 1 Device . | . . . Storage 3 | 1 2 . Processor . | . . . Hackware . | . . . Protection 3 | . 2 1 Artifact . | . . . Weapon 8 | 2 1 5 Energy Gun 4 | 2 . 2 Energy Cannon 1 | . . 1 Ballistic Gun 1 | . . 1 Ballistic Cannon . | . . . Launcher 2 | . 1 1 Special Weapon . | . . . Impact Weapon . | . . . Slashing Weapon . | . . . Piercing Weapon . | . . . Special Melee Weapon . | . . . Unidentified Prototypes . | . . . Parts Lost 6 | . 1 5 Power 2 | . . 2 Propulsion 2 | . . 2 Utility 1 | . 1 . Weapon 1 | . . 1 Highest Loss Streak 1 | . 1 1 To Critical Strikes . | . . . Average Backups 8 | . 6 9 Power . | . 1 . Propulsion 1 | . . 2 Utility 3 | . 2 3 Weapon 2 | . 1 3 Tool/Special . | . . . Unused Backups 7 | . . 7 Power . | . . . Propulsion 3 | . . 3 Utility 3 | . . 3 Weapon 1 | . . 1 Tool/Special . | . . . Average Slot Usage (%) 96 | . 97 95 Engine 13 | . 14 13 Wheel 25 | . 28 23 Storage 14 | . 14 14 Protection 13 | . 12 14 Energy Gun 14 | . 24 10 Energy Cannon 2 | . . 3 Ballistic Gun 5 | . . 8 Launcher 5 | . 3 6 Peak Build Rating 17 | 6 7 17 Average Rating 11 | 4 6 13 On Entrance 4 | . 6 7 Naked Turns . | . . . Heaviest Build 101 | 10 90 101 Greatest Support 26 | 26 26 26 Greatest Overweight (x) 9 | . 3 9 Average Overweight (x) 4 | . 2 5 Largest Inventory Capacity 25 | 8 25 25 Average Capacity 24 | 7 23 25 Most Carried 13 | 1 8 13 Average Carried 8 | . 6 9 Final Capacity 25 | 8 25 25 Final Carried 11 | 1 6 11 Class Distribution -------------------- 100% | Mutant Dominant Class ---------------- Mutant | -10/Materials Mutant | -10/Subcaves Resources | -11 -10 -10 ----------- Run | Yrd Mat Sub Matter Collected 552 | 245 51 256 Remotely . | . . . Salvage Created 496 | . 186 310 Parts 31 | . 12 19 Haulers Intercepted . | . . . Recyclers Shooed . | . . . Parts Field Recycled . | . . . Retrieved Matter . | . . . Parts Self-Destructed 9 | . . 9 Prevented . | . . . Kills | -11 -10 -10 ------- Run | Yrd Mat Sub Combat Hostiles Destroyed 22 | . 8 14 Guns 6 | . 5 1 Cannons 1 | . . 1 AOE 12 | . 3 9 Classes Destroyed 4 | . 3 1 Worker 1 | . 1 . Swarmer 13 | . 6 7 Grunt 2 | . 2 . Subdweller 7 | . . 7 Best Kill Streak 4 | . 3 4 Combat Bots Only 4 | . 3 4 Max Kills in Single Turn 3 | . 2 3 Gunslinging . | . . . Exploded 3 | . 2 3 Melee . | . . . Uniques/NPCs Destroyed . | . . . Combat | -11 -10 -10 -------- Run | Yrd Mat Sub Hostile Shots Fired 119 | . 37 82 Missed 42 | . 8 34 Hits 77 | . 29 48 Projectile 77 | . 29 48 Critical Strikes 1 | . . 1 Damage Taken 1063 | . 281 782 Core 254 | . 29 225 Absorbed by Shields . | . . . Core Remaining (%) 100 | 100 . . Volleys Fired 69 | . 23 46 Largest 2 | . 2 2 Hottest 140 | . 80 140 Shots Fired 120 | . 44 76 Gun 85 | . 42 43 Cannon 18 | . . 18 Launcher 17 | . 2 15 Special . | . . . Kinetic 16 | . . 16 Thermal 60 | . 42 18 Explosive 17 | . 2 15 Electromagnetic 27 | . . 27 Robot Hit Streak 14 | . 9 14 Robot Miss Streak 4 | . 4 3 Penetration Max . | . . . Secondary Targets . | . . . Shots Hit Robots 80 | . 26 54 Core Hits 30 | . 11 19 Critical Kills 1 | . . 1 Critical Parts Destroyed . | . . . Critical Strikes 1 | . . 1 Meltdown 1 | . . 1 Melee Attacks . | . . . Impact . | . . . Slashing . | . . . Piercing . | . . . Sneak Attacks . | . . . Combat Hostiles . | . . . Follow-up Attacks . | . . . Damage Inflicted 1995 | . 399 1596 Guns 929 | . 279 650 Cannons 249 | . . 249 Explosions 817 | . 120 697 Melee . | . . . Ramming . | . . . Kinetic 270 | . . 270 Thermal 600 | . 279 321 Explosive 745 | . 120 625 Electromagnetic 380 | . . 380 Impact . | . . . Slashing . | . . . Piercing . | . . . Highest Corruption . | . . . Average Corruption . | . . . Corruption Purged . | . . . Corruption Blocked . | . . . Overload Shots . | . . . Overflow Damage 4 | . . 4 Projectiles . | . . . Explosions 4 | . . 4 Melee . | . . . Knockbacks . | . . . Impact . | . . . Kinetic . | . . . Secondary . | . . . Self-Inflicted Damage 69 | . 24 45 Shots 3 | . 1 2 Rammed . | . . . Targets Rammed . | . . . Kicked . | . . . Crushed . | . . . Highest Temperature 369 | . 369 105 Average Temperature 112 | . 155 30 Received Heat Transfer 276 | . 72 204 Siege Activations . | . . . Martial Activations . | . . . Shielding Activations . | . . . Robots Disrupted . | . . . Combat Hostiles . | . . . Robots Corrupted 2 | . . 2 Combat Hostiles 2 | . . 2 Parts Fried 3 | . . 3 Impact Corruptions . | . . . Robots Melted 1 | . . 1 Combat Hostiles 1 | . . 1 Parts Melted 5 | . 2 3 Heat Transferred 1008 | . 625 383 Parts Sabotaged . | . . . Parts Stolen . | . . . Parts Stripped . | . . . Power Chain Reactions 1 | . . 1 Alert | -11 -10 -10 ------- Run | Yrd Mat Sub Maximum Alert Level . | . . . Low Security (%) 100 | 100 100 . Level 1 . | . . . Level 2 . | . . . Level 3 . | . . . Level 4 . | . . . Level 5 . | . . . High Security . | . . . Max Security . | . . . Peak Influence 100 | . 100 . Initial . | . . . Average 39 | . 42 . Influence Increases 556 | . 241 315 Destroy 0b10 Robot/C 300 | . 160 140 Destroy 0b10 Robot/NC 5 | . 5 . Destroy Leader 40 | . 30 10 Successful Hack 12 | . 12 . Destroy Structure 19 | . 19 . Lose Combat Pursuer 180 | . 15 165 Influence Decreases 534 | . 198 336 Entered New Map 22 | . . 22 Time Decay 462 | . 188 274 Lost Part 50 | . 10 40 Squads Dispatched 1 | . 1 . Investigation . | . . . Extermination . | . . . Reinforcement 1 | . 1 . Assault . | . . . Garrison . | . . . Intercept . | . . . Searches Triggered . | . . . Construction Impeded . | . . . Haulers Reinforced . | . . . Active Scanning Responses . | . . . Cargo Convoy Interrupts . | . . . Stealth | -11 -10 -10 --------- Run | Yrd Mat Sub Distress Signals . | . . . Communications Jammed . | . . . Distress Signals . | . . . Times Spotted 36 | . 13 23 Peak Tracking Total 5 | . 5 4 Tactical Retreats 4 | . 1 3 Traps | -11 -10 -10 ------- Run | Yrd Mat Sub Traps Triggered . | . . . Indirectly . | . . . Trap Hack Attempts . | . . . Triggered . | . . . Disarmed . | . . . Reprogrammed . | . . . Reused . | . . . Traps Extracted . | . . . Installed . | . . . Triggered . | . . . Machines | -11 -10 -10 ---------- Run | Yrd Mat Sub Machines Disabled 2 | . . 2 Max in Single Turn 2 | . . 2 Machines Repaired . | . . . Machines Dismantled . | . . . Machines Sabotaged . | . . . Overloaded Fab Kills . | . . . Hacking | -11 -10 -10 --------- Run | Yrd Mat Sub Machines Accessed 5 | . 5 . Terminals 5 | . 5 . Fabricators . | . . . Repair Stations . | . . . Recycling Units . | . . . Scanalyzers . | . . . Garrison Access . | . . . Total Hacks 15 | . 15 . Successful 10 | . 10 . Failed 5 | . 5 . Catastrophic 1 | . 1 . Database Lockouts . | . . . Manual 14 | . 14 . Terminals 15 | . 15 . Fabricators . | . . . Repair Stations . | . . . Recycling Units . | . . . Scanalyzers . | . . . Garrison Access . | . . . Terminal Hacks 2 | . 2 . Robot Analysis 1 | . 1 . Terminal Index 1 | . 1 . Fabricator Hacks . | . . . Repair Station Hacks . | . . . Recycling Unit Hacks . | . . . Scanalyzer . | . . . Garrison Access Hacks . | . . . Unauthorized Hacks 8 | . 8 . Terminals 8 | . 8 . Botnet 3 | . 3 . Skim 5 | . 5 . Fabricators . | . . . Repair Stations . | . . . Recycling Units . | . . . Scanalyzers . | . . . Garrison Access . | . . . Data Cores Recovered . | . . . Used . | . . . Hacking Detections 4 | . 4 . Full Trace Events 1 | . 1 . Feedback Events . | . . . Feedback Blocked . | . . . Robot Schematics Acquired . | . . . Robots Built . | . . . Authchips . | . . . Time . | . . . Total Robot Build Rating . | . . . Part Schematics Acquired . | . . . Parts Built . | . . . Authchips . | . . . Time . | . . . Total Part Build Rating . | . . . Parts Repaired . | . . . Time . | . . . Parts Recycled . | . . . Recycled Matter . | . . . Retrieved Matter . | . . . Retrieved Components . | . . . Parts Scanalyzed . | . . . Part Schematics Acquired . | . . . Parts Damaged . | . . . Bothacking | -11 -10 -10 ------------ Run | Yrd Mat Sub Used RIF Installer . | . . . Robots Hacked . | . . . Non-combat . | . . . Combat . | . . . Robot Hacks Applied . | . . . Relay Couplers Released . | . . . Fabnet Peak Effective % . | . . . Robots Rewired . | . . . Allies Hacked . | . . . Hacks Repelled . | . . . Allies | -11 -10 -10 -------- Run | Yrd Mat Sub Total Allies . | . . . Largest Group . | . . . Highest-Rated Group . | . . . Highest-Rated Ally . | . . . Total Orders . | . . . Ally Attacks . | . . . Total Damage . | . . . Kills . | . . . Allies Corrupted . | . . . Allies Melted . | . . . Intel | -11 -10 -10 ------- Run | Yrd Mat Sub Active Infowar (turns) . | . . . Robot Analysis Total 1 | . 1 . Derelict Logs Recovered 1 | . . 1 Drone Launches . | . . . Drone Recoveries . | . . . Exploration | -11 -10 -10 ------------- Run | Yrd Mat Sub Turns Passed 1786 | 44 498 1244 Spaces Moved 1017 | 39 285 693 Core 3 | 3 . . Treads . | . . . Legs . | . . . Wheels 1014 | 36 285 693 Hover . | . . . Flight . | . . . Fastest Speed 50 | 50 90 135 Average Speed 146 | 87 127 156 Slowest Speed 215 | 100 135 215 Overloaded Moves . | . . . Propulsion Burnouts . | . . . Robots Hopped . | . . . Potential Cave-ins . | . . . Cave-ins Triggered . | . . . Exploration Rate (%) 39 | 3 61 55 Regions Visited 2 Branch Regions 1 Pre-discovered Areas 1 | . . 1 Known Exits Taken . | . . . Unknown Exits Taken 2 | 1 1 . Scrap Searched . | . . . Spaces Dug . | . . . Terrain Destroyed 80 | . 18 62 Melee . | . . . Projectile . | . . . AOE 80 | . 18 62 Terrain Rammed . | . . . Walls Destroyed . | . . . Machines Disabled . | . . . Actions | -11 -10 -10 --------- Run | Yrd Mat Sub Total 1191 | 45 375 771 Wait 57 | . 52 5 Move 1015 | 38 284 693 Hop . | . . . Pick Up 18 | 1 7 10 Fast Attach 10 | 6 2 2 Attach 8 | . 2 6 Detach 3 | . 2 1 Swap 6 | . 1 5 Drop 5 | . 2 3 Fire 69 | . 23 46 Melee . | . . . Ram . | . . . Kick . | . . . Crush . | . . . Escape Stasis . | . . . Rewire . | . . . Trap . | . . . Miscellaneous . | . . . Route ------- -11/Scrapyard -10/Materials (discovered 5 exits: [*Mat x2] / [*Min x2] / [*Sub]) -10/Subcaves (discovered 2 exits: [*Mat] / [*Rec]) History --------- Turn | Location | Event 28 | -11/Scrapyard | Discovered new exit (range 14) 45 | -11/Scrapyard | Entered Materials 54 | -10/Materials | Discovered new exit (range 15) 101 | -10/Materials | Discovered new exit (range 9) 260 | -10/Materials | Discovered new exit (range 12) 301 | -10/Materials | Build established: Mutant 387 | -10/Materials | Discovered new exit (range 10) 531 | -10/Materials | Discovered new exit (range 4) 543 | -10/Materials | Entered Subcaves 544 | -10/Subcaves | Approached by a straggling Scientist 562 | -10/Subcaves | Shifting Twisted Machinery released Sub. Laser 577 | -10/Subcaves | Discovered new exit (range 10) 608 | -10/Subcaves | Shifting Twisted Machinery released Riot Gun 715 | -10/Subcaves | Shifting Twisted Machinery released Hvy. Riot Gun 715 | -10/Subcaves | Shifting Twisted Machinery released Sub. Beam Cannon 1243 | -10/Subcaves | Learned location of Zion (-7) 1268 | -10/Subcaves | Discovered new exit (range 15) 1329 | -10/Subcaves | A swath of the cavern ceiling suddenly collapsed 1435 | -10/Subcaves | Core integrity fell below 50% 1465 | -10/Subcaves | Core integrity fell below 20% 1787 | -10/Subcaves | Destroyed by HS-ZNZ(R) with Subdweller Machine Gun Last Messages --------------- 01101_ Acquired 12 matter. 01200_ Sub. Power Source shoots sparks and powers down. 01201_ Dropped Broken Sub. Power Source. 01243_ Acquired derelict log, extracted data. World map updated: -7/Zion. 01268_ EXIT=FOUND A swath of the cavern ceiling suddenly collapses. 01443_ Wheel destroyed. 01445_ FT-IO4(R) destroyed. 01455_ VO-UZS(R) affixes Scrap Shield Fragment to Scrap Shield. 01466_ VO-UZS(R) misfires. 01474_ Chain reaction triggered in Sub. Power Source. 01475_ VO-UZS(R) system terminally corrupted. 01475_ Sub. Optics fried. 01531_ Acquired 35 matter. 01603_ S-10 Pest destroyed. 01603_ Destroyed Flight Unit. 01606_ The unstable cave ceiling collapses. 01609_ S-10 Pest destroyed. 01613_ The unstable cave ceiling collapses. Map ----- +----------------------------------------------------+ | ?????????????????????????????????????????????????? | | ?????????????????????????????????????????????????? | | ?????????????????????????????????????????????????? | | ?????????????????????????????????????????????????? | | ?????????????????????????????????????????????????? | | ?????????????????????????????????????????????????? | | ?????????????????????????????????????????????????? | | ?????????????????????????????????????????????????? | | ?????????????????????????????????????????????????? | | ?????????????????????????????????????????????????? | | ?????????????????????????????????????????????????? | | ?????????????????????????????????????????????????? | | ?????????????????????????????????????????????????? | | ?????????????????????????????????????????????????? | | ?????????????????????????????????????????????????? | | ?????????????????????????????????????????????????? | | ?????????????????????????????????????????????????? | | ?????????????????????????????????????????????????? | | ?????????????????????????????????????????????????? | | ?????????????????????????????????????????????????? | | ???????????????????????????????????????###??###??? | | ??????????????# ????##????????????????# #### #### | | ??????????????# ### ???????????????# # | | ??????????????# #######???????## | | ??????????????# #???????# | | ??????????????# @ #######?## # | | ??????????????# R #?## #### | | ??????????????# ## ### #??? | | ??????????????# # ##### R #??? | | ??????????????# " $ #### # ## #?? | | ??????????????# ? "" " ## | | ????????????????? " "" | | ?????????????????"" ###"### "" # #### | | ?????????????????"""#??#???# & ##??# | | ?????????????????" ???????### ## ###???? | | ?????????????????" ??????????# "## ##?????? | | ?????????????????????????????# """### #??????? | | ?????????????????????????????#########?## ??# | | ????????????????????????????????????????# #?## | | ?????????????????????????????????????????###??# | | ??????????????????????????????????????????????## ? | | ?????????????????????????????????????????????????? | | ?????????????????????????????????????????????????? | | ?????????????????????????????????????????????????? | | ?????????????????????????????????????????????????? | | ?????????????????????????????????????????????????? | | ?????????????????????????????????????????????????? | | ?????????????????????????????????????????????????? | | ?????????????????????????????????????????????????? | | ?????????????????????????????????????????????????? | +----------------------------------------------------+ Best States ------------- Heat Dissipation 25 Energy Generation 15 Energy Capacity 200 Matter Stores 300 Matter Capacity 300 Sight Range 16 Terrain Scan Density 10 Armor Coverage 150 Evasion (%) 42 Item Schematics ----------------- None Robot Schematics ------------------ None Fabricated ------------ Nothing Repaired ---------- Nothing Alien Tech Used ----------------- None Achievements -------------- None Challenges ------------ None Game ------ Seed HardcellMiniClaws Manual? 0 Play Time 00:14:54 Cumulative 227.5 hours Start 2025.05.13 @ 19:49:04 End 2025.05.13 @ 20:03:00 Sessions 1 Manual Loads 0 Difficulty Rogue Special Mode None Game No. 103 Rogue 60 Adventurer 43 Explorer 0 Win Type - Total 6 Types 4/0/1/0/0/0/0/1/0/0 Lore% 69 Gallery% 66 Achievement% 61 Wizard Run 0 Options --------- Layout 0 ASCII 0 Keyboard 0 Movement Mouse Keybinds 0 Fullscreen 1 Font 24/Smallcaps Map View 76x50 Zoom Use 0% Tactical HUD 1 Map Filters NONE Filters NONE Steam 1 RUN: e200d1a7-9e1b-4fe8-920e-7146a3173974